[Event "Lliga Catalana 2024"]
[Site "Catalonia"]
[Date "2024.02.24"]
[Round "6.1"]
[White "Castillo Dalmau, Albert"]
[Black "Predke, Alexandr"]
[Result "0-1"]
[ECO "A30"]
[WhiteElo "2313"]
[BlackElo "2668"]
[Annotator "TA"]
[PlyCount "90"]
[EventDate "2024.01.18"]
[EventType "team-tourn"]
[EventCountry "ESP"]
[SourceTitle "playchess.com"]
[Source "ChessBase"]
[SourceQuality "1"]
[TimeControl "5400+30"]

{[%evp 16,90,25,3,10,0,3,0,20,0,31,16,33,0,0,0,31,28,38,30,54,31,47,0,56,64,168,171,230,205,212,235,237,0,0,0,0,-65,-57,-56,-64,-71,-74,-58,-46,-105,-93,-103,-104,-111,-98,-113,-87,-87,-87,-95,-106,-111,-103,-121,-98,-102,-91,-172,-187,-187,-187,-220,-197,-345,-330,-390,-387,-365,-371,-488,-473]} 1. Nf3 {[%emt 0:00:08]} Nf6 {[%emt 0:01:07]} 2. c4 {[%emt 0:01:40]} b6 {[%emt 0:00:07]} 3. g3 {[%emt 0:01:59]} Bb7 {[%emt 0:00:10]} 4. Bg2 {[%emt 0:00:04]} c5 {[%emt 0:00:18]} 5. O-O {[%emt 0:00:06]} g6 {[%emt 0:00:03]} 6. b3 {[%emt 0:02:19]} Bg7 {[%emt 0:00:06]} 7. Bb2 {[%emt 0:00:03]} O-O {[%emt 0:00:03]} 8. Nc3 {[%emt 0:00:21]} Na6 {[%emt 0:01:52]} 9. Rc1 {[%emt 0:04:16]} e6 {[%emt 0:07:04]} 10. e3 {[%emt 0:11:27]} d5 {[%emt 0:01:00]} 11. cxd5 {[%emt 0:00:36]} exd5 {[%emt 0:00:26] The position is equal.} 12. d4 {[%emt 0:00:09]} Re8 {[%emt 0:00:18]} 13. Re1 {[%emt 0:05:47][%cal Bf1e1,Be1e2,Be2b2,Bb2b4][%mdl 32]} Qe7 {[%emt 0:05:20]} 14. Re2 {[%emt 0:01:08]} Rad8 {[%emt 0:02:03]} 15. Na4 {[%emt 0:08:14]} c4 {[%emt 0:03:32]} 16. Nc3 $1 {[%emt 0:04:53]} Nb4 {[%emt 0:29:37]} 17. Ba3 {[%emt 0:11:33]} a5 {[%emt 0:00:06]} 18. Rb2 {[%emt 0:05:20]} Ng4 {[%emt 0:05:24]} 19. Qd2 {[%emt 0:12:59]} (19. h3 $14 Nh6 20. Rcb1) 19... Qf6 {[%emt 0:00:58]} (19... Bf8 $11) 20. Ne1 $1 $14 {[%emt 0:00:47]} Bc8 {[%emt 0:20:15]} (20... Ba6 $14) 21. bxc4 $1 $18 {[%emt 0:05:43]} (21. h3 Nxf2 22. Qxf2 Qxf2+ 23. Kxf2 Rxe3 $16) 21... dxc4 {[%emt 0:00:40]} (21... Bh6 {is a better defense.} 22. Nd1 (22. Nxd5 $2 {perishes.} Nxd5 23. cxd5 Rxe3 $19) (22. Bxd5 Rxe3 23. f4 g5 $19) 22... dxc4) 22. Bxb4 {[%emt 0:00:19]} axb4 {[%emt 0:00:11]} 23. Rxb4 {[%emt 0:00:04]} Bh6 {[%emt 0:03:30][%cal Re8e3] [#] Hoping for ...Rxe3!} 24. Ne4 $2 {[%emt 0:01:41]} (24. Rxc4 Nxe3 25. Nc2 (25. Ne4 Rxe4 26. Bxe4 Nxc4 $15) 25... Nxc4 $17) (24. Nc2 $1 $18) 24... Rxe4 $1 $11 {[%emt 0:07:23]} 25. Bxe4 {[%emt 0:00:04]} Rxd4 {[%emt 0:00:07]} 26. Qb2 {[%emt 0:21:50]} (26. Bd3 $1 $11 Nxe3 27. Qb2 (27. fxe3 Qe6 $17)) 26... Rxe4 $15 {[%emt 0:01:39]} 27. Qxf6 {[%emt 0:00:00]} Nxf6 {[%emt 0:00:01]} 28. Rcxc4 {[%emt 0:00:00]} Rxc4 {[%emt 0:00:35]} 29. Rxc4 {[%emt 0:00:00]} Be6 {[%emt 0:00:05]} 30. Rb4 {[%emt 0:00:00] [#]} (30. Rc7 $15) 30... Nd7 $1 $17 {[%emt 0:00:10]} 31. a4 {[%emt 0:00:00]} Bg7 {[%emt 0:01:52]} 32. Nf3 {[%emt 0:00:00]} Bc3 {[%emt 0:00:01]} 33. Rb1 {[%emt 0:00:00]} Ba5 {[%emt 0:04:24]} 34. Nd4 {[%emt 0:00:00]} Bd5 {[%emt 0:00:04]} 35. Nb3 {[%emt 0:00:00]} Bc3 {[%emt 0:01:20]} 36. Kf1 {[%emt 0:00:00]} Kf8 {[%emt 0:02:29] Black is more active.} 37. Ke2 {[%emt 0:00:00]} Ke7 {[%emt 0:04:40]} 38. Kd3 {[%emt 0:00:00]} Bb4 {[%emt 0:00:00] And now ...Bxb3 would win. This pair of bishops is nice.} 39. Nd4 {[%emt 0:00:00]} (39. Nd2 $17 Nc5+ 40. Kd4 Bxd2 41. Kxd5 Nxa4 42. Kc4) 39... Nc5+ {[%emt 0:00:00]} 40. Ke2 {[%emt 0:00:00]} Ba5 {[%emt 0:00:00]} 41. Ra1 {[%emt 0:00:00]} Bc3 {[%emt 0:00:00]} 42. Rd1 {[%emt 0:00:00]} (42. Rc1 $142 Bxd4 (42... Nxa4 $2 43. Kd3 $19) 43. exd4 Nxa4 44. Rc7+ Kd6 45. Ra7) 42... Nxa4 $19 {[%emt 0:00:00][%cal Ob6b5]} 43. Nf5+ {[%emt 0:00:00]} Ke6 $1 {[%emt 0:00:00]} (43... gxf5 $2 44. Rxd5 Ke6 45. Rb5 $19) 44. Nd4+ {[%emt 0:00:00]} Kd6 {[%emt 0:00:00]} 45. f3 {[%emt 0:02:19]} Kc5 {[%emt 0:00:00] What a bad dream for White.   Weighted Error Value: White=0.26 (precise) /Black=0.14 (very precise) .  Missed win:     	White=1     	---        Mistake:       	White=5     	Black=3      Inaccurate:     	White=2     	Black=2      OK:         	White=10    	Black=15     Best:        	White=3     	Black=3      Strong:       	White=3     	Black=3} 0-1

[Event "Lliga Catalana 2024"]
[Site "Catalonia"]
[Date "2024.02.24"]
[Round "6.2"]
[White "Chigaev, Maksim"]
[Black "Rojano Alfonso, Carlos"]
[Result "1-0"]
[ECO "A96"]
[WhiteElo "2622"]
[BlackElo "2240"]
[Annotator "TA"]
[PlyCount "87"]
[EventDate "2024.01.18"]
[EventType "team-tourn"]
[EventCountry "ESP"]
[SourceTitle "playchess.com"]
[Source "ChessBase"]
[SourceQuality "1"]
[TimeControl "5400+30"]

{[%evp 12,87,52,16,47,16,54,61,83,77,70,76,78,56,71,54,101,102,125,133,123,123,109,106,107,109,109,39,62,63,75,65,78,84,90,60,74,66,67,70,166,164,201,203,340,334,334,325,327,316,404,400,528,452,585,578,562,397,375,408,409,408,394,394,500,493,596,577,597,600,628,629,712,705,839,839,722,730]} 1. d4 {[%emt 0:00:31]} e6 {[%emt 0:00:09]} 2. Nf3 {[%emt 0:00:27]} f5 {[%emt 0:00:09]} 3. g3 {[%emt 0:03:18]} Nf6 {[%emt 0:00:16]} 4. Bg2 {[%emt 0:00:08]} d6 {[%emt 0:00:07]} 5. O-O {[%emt 0:00:18]} Be7 {[%emt 0:00:03]} 6. c4 {[%emt 0:00:10]} O-O {[%emt 0:00:05]} 7. b4 {[%emt 0:00:22]} Qe8 {[%emt 0:00:19]} 8. a4 {[%emt 0:00:22]} a5 {[%emt 0:04:11]} 9. b5 {[%emt 0:00:09]} Qh5 {[%emt 0:02:15] White is slightly better.} 10. Nc3 {[%emt 0:04:17]} Nbd7 {[%emt 0:03:15]} 11. Ba3 {[%emt 0:02:23]} Rf7 {[%emt 0:03:21]} 12. Qb3 {[%emt 0:05:50]} Rb8 {[%emt 0:11:03]} 13. c5 {[%emt 0:05:53]} d5 {[%emt 0:04:36]} (13... dxc5 $14 14. Qxe6 Bd6) 14. Qc2 $16 {[%emt 0:08:55]} Ne4 {[%emt 0:09:28]} 15. c6 {[%emt 0:02:01]} bxc6 {[%emt 0:03:38]} 16. bxc6 {[%emt 0:00:19]} Ndf6 {[%emt 0:00:12]} 17. Nxe4 {[%emt 0:04:41]} (17. Ne5 {looks sharper.} Bxa3 18. Bf3 Qh3 19. Rxa3 Re7 20. Bg2) 17... dxe4 {[%emt 0:05:25]} 18. Ne5 {[%emt 0:00:07]} Bxa3 {[%emt 0:06:44]} 19. Nxf7 {[%emt 0:00:37]} ({Better is} 19. Rxa3 $16 Rf8 20. e3) 19... Bb4 {[%emt 0:00:16]} 20. Ne5 {[%emt 0:00:22]} Ba6 {[%emt 0:00:33]} 21. f3 {[%emt 0:00:30]} e3 {[%emt 0:04:17]} 22. Qb3 {[%emt 0:06:26][%csl LRe3,LRe6]} Qe8 {[%emt 0:01:30]} 23. Nd7 {[%emt 0:03:01]} Nxd7 {[%emt 0:03:36]} 24. cxd7 {[%emt 0:00:03]} Qxd7 {[%emt 0:00:10]} 25. Qxe3 {[%emt 0:00:05]} Rd8 {[%emt 0:02:06] Black is on the road to losing.} ({Black should try} 25... c5 $14) 26. Rfd1 $18 {[%emt 0:05:21]} Qd6 {[%emt 0:04:32]} 27. f4 {[%emt 0:01:25]} Bc4 {[%emt 0:02:48]} (27... Kf8 $142 28. Qf3 c5) 28. Rac1 {[%emt 0:00:35]} Qa6 {[%emt 0:00:35] [#]} 29. Bb7 $1 {[%emt 0:02:01][%mdl 512]} Qxb7 {[%emt 0:01:11]} 30. Rxc4 {[%emt 0:00:06]} Rd6 {[%emt 0:03:11]} 31. Rdc1 {[%emt 0:02:18]} Qb6 {[%emt 0:00:15]} 32. Kg2 {[%emt 0:01:30]} h6 {[%emt 0:00:58]} 33. Rxc7 {[%emt 0:03:19] [#] White threatens Qe5 and mate.} Qxd4 {[%emt 0:00:15]} 34. Rc8+ {[%emt 0:00:47]} Kh7 {[%emt 0:01:12]} 35. Qxd4 {[%emt 0:00:04]} Rxd4 {[%emt 0:00:03][%mdl 4096] Endgame. KRR-KRB} 36. R8c4 {[%emt 0:00:16]} Rd2 {[%emt 0:00:44]} 37. R1c2 {[%emt 0:00:04]} Rd1 {[%emt 0:00:05]} 38. Rc6 {[%emt 0:00:06][%cal Bc4c6,Bc6e6,Be6e5,Be5f5,Bf5b5,Bb5b7][%mdl 32] White is clearly winning.} Ra1 {[%emt 0:00:10]} 39. Rxe6 {[%emt 0:00:04]} Rxa4 {[%emt 0:00:03]} 40. Re5 {[%emt 0:00:08]} Ra1 {[%emt 0:00:19]} 41. Rxf5 {[%emt 0:00:11]} a4 {[%emt 0:00:08]} 42. Rb5 {[%emt 0:03:32]} Be7 {[%emt 0:00:37]} 43. Rb7 {[%emt 0:00:35]} Bf6 {[%emt 0:00:04]} 44. e4 {[%emt 0:00:10] Weighted Error Value: White=0.18 (very precise) /Black=0.38.  Mistake:       	White=1     	Black=3      Inaccurate:     	White=2     	Black=2      OK:         	White=21    	Black=10     Best:        	White=2     	Black=3} 1-0

[Event "Lliga Catalana 2024"]
[Site "Catalonia"]
[Date "2024.02.24"]
[Round "6.2"]
[White "Lazaro Pujol, Abel"]
[Black "Diaz Camallonga, Carles"]
[Result "0-1"]
[ECO "B32"]
[WhiteElo "2301"]
[BlackElo "2493"]
[Annotator "RC"]
[PlyCount "122"]
[EventDate "2024.01.18"]
[EventType "team-tourn"]
[EventCountry "ESP"]
[SourceTitle "playchess.com"]
[Source "ChessBase"]
[SourceQuality "1"]
[TimeControl "5400+30"]

1. e4 {[%emt 0:00:06]} c5 {[%emt 0:00:04]} 2. Nf3 {[%emt 0:00:21]} Nc6 {[%emt 0:00:04]} 3. d4 {[%emt 0:00:18]} cxd4 {[%emt 0:00:04]} 4. Nxd4 {[%emt 0:00:09]} e5 {[%emt 0:00:03]} 5. Nb5 {[%emt 0:00:17]} d6 {[%emt 0:00:06]} 6. N1c3 {[%emt 0:00:27]} a6 {[%emt 0:00:06]} 7. Na3 {[%emt 0:00:08]} Be6 {[%emt 0:00:11]} 8. Nc4 {[%emt 0:00:57]} b5 {[%emt 0:00:17]} 9. Ne3 {[%emt 0:00:17]} Nf6 {[%emt 0:00:07]} 10. g3 {[%emt 0:03:43]} g6 {[%emt 0:00:13]} 11. Bg2 {[%emt 0:00:38]} Bh6 {[%emt 0:00:06]} 12. O-O {[%emt 0:01:19]} O-O {[%emt 1:35:09]} 13. Ncd5 {[%emt 0:11:03]} Bxd5 {[%emt 0:00:30]} 14. exd5 {[%emt 0:08:56]} Ne7 {[%emt 0:00:30]} 15. a4 {[%emt 1:09:21]} Nd7 {[%emt 0:00:30]} 16. Qe2 {[%emt 0:00:30]} Rb8 {[%emt 0:00:30]} 17. axb5 {[%emt 0:00:00]} axb5 {[%emt 0:00:30]} 18. Bd2 {[%emt 0:01:00]} f5 {[%emt 0:00:00]} 19. Ra7 {[%emt 0:00:00]} Nc8 {[%emt 0:00:00]} 20. Ba5 {[%emt 0:00:00]} Ndb6 {[%emt 0:00:00]} 21. Ra6 {[%emt 0:01:30]} Qd7 {[%emt 0:02:00]} 22. Ra1 {[%emt 0:00:30]} Rb7 {[%emt 0:00:30]} 23. Bd2 {[%emt 0:00:30]} Ne7 {[%emt 0:00:30]} 24. Nc4 {[%emt 0:00:30]} bxc4 {[%emt 0:00:30]} 25. Bxh6 {[%emt 0:00:00]} Rfb8 {[%emt 0:00:00]} 26. h4 {[%emt 0:01:00]} Kf7 {[%emt 0:01:00]} 27. Be3 {[%emt 0:00:30]} Ng8 {[%emt 0:00:30]} 28. Qd2 {[%emt 0:00:30]} Nf6 {[%emt 0:00:00]} 29. Qa5 {[%emt 0:00:00]} Nc8 {[%emt 0:00:00]} 30. Rc6 {[%emt 0:00:00]} Rb5 {[%emt 0:00:00]} 31. Qc3 {[%emt 0:00:17]} Rxb2 {[%emt 0:00:00]} 32. Qxc4 {[%emt 0:00:37]} R2b7 {[%emt 0:02:30]} 33. Rd1 {[%emt 0:00:59]} Ne7 {[%emt 0:00:00]} 34. Ra6 {[%emt 0:01:07]} Rc8 {[%emt 0:00:00]} 35. Qa2 {[%emt 0:00:30]} Rbc7 {[%emt 0:00:00]} 36. Qa3 {[%emt 0:00:30]} Ne8 {[%emt 0:02:00]} 37. Bb6 {[%emt 0:00:30]} Rxc2 {[%emt 0:00:00]} 38. Ra7 {[%emt 0:00:00]} Qb5 {[%emt 0:01:00]} 39. Qe3 {[%emt 0:01:00]} Qe2 {[%emt 0:00:30]} 40. Qxe2 {[%emt 0:00:00]} Rxe2 {[%emt 0:00:30]} 41. Rb1 {[%emt 0:01:00]} Rec2 {[%emt 0:00:30]} 42. Kh2 {[%emt 0:00:30]} Nf6 {[%emt 0:00:00]} 43. Be3 {[%emt 0:00:30]} R8c7 {[%emt 0:00:00]} 44. Rxc7 {[%emt 0:00:00]} Rxc7 {[%emt 0:01:30]} 45. Rb5 {[%emt 0:01:00]} Ng4+ {[%emt 0:00:00]} 46. Kg1 {[%emt 0:00:30]} Nxe3 {[%emt 0:00:00]} 47. fxe3 {[%emt 0:00:30]} e4 {[%emt 0:00:00]} 48. g4 {[%emt 0:00:30]} Kf6 {[%emt 0:00:00]} 49. Kf2 {[%emt 0:00:00]} Ke5 {[%emt 0:00:00]} 50. gxf5 {[%emt 0:00:12]} gxf5 {[%emt 0:00:00]} 51. Bh3 {[%emt 0:00:22]} Rc2+ {[%emt 0:00:00]} 52. Kg1 {[%emt 0:00:32]} Rd2 {[%emt 0:00:00]} 53. Rb7 {[%emt 0:00:42]} Kf6 {[%emt 0:00:00]} 54. Rxe7 {[%emt 0:00:21]} Kxe7 {[%emt 0:00:00]} 55. Bxf5 {[%emt 0:00:05]} h6 {[%emt 0:00:00]} 56. Bxe4 {[%emt 0:00:10]} Re2 {[%emt 0:00:00]} 57. Bf3 {[%emt 0:00:47]} Rxe3 {[%emt 0:00:00]} 58. Kf2 {[%emt 0:01:49]} Ra3 {[%emt 0:00:00]} 59. Kg3 {[%emt 0:00:00]} Kf6 {[%emt 0:00:58]} 60. Kf4 {[%emt 0:00:00]} Ra4+ {[%emt 0:00:11]} 61. Be4 {[%emt 0:00:00]} Rb4 {[%emt 0:00:10]} 0-1

[Event "Lliga Catalana 2024"]
[Site "Catalonia"]
[Date "2024.02.24"]
[Round "6.3"]
[White "Garcia Ramos, Daniel"]
[Black "Lemeshev, Ilya"]
[Result "1-0"]
[ECO "C57"]
[WhiteElo "2436"]
[BlackElo "2236"]
[Annotator "TA"]
[PlyCount "59"]
[EventDate "2024.01.18"]
[EventType "team-tourn"]
[EventCountry "ESP"]
[SourceTitle "playchess.com"]
[Source "ChessBase"]
[SourceQuality "1"]
[TimeControl "5400+30"]

{[%evp 13,59,98,86,59,81,65,70,74,222,245,237,248,248,231,243,230,224,222,229,222,217,220,241,237,255,246,245,196,290,277,350,335,528,545,510,520,591,589,593,562,835,829,837,831,29994,1035,1092,1034]} 1. e4 {[%emt 0:00:35]} e5 {[%emt 0:00:48]} 2. Nf3 {[%emt 0:00:17]} Nc6 {[%emt 0:00:10]} 3. Bc4 {[%emt 0:00:42]} Nf6 {[%emt 0:00:20]} 4. Ng5 {[%emt 0:01:26]} d5 {[%emt 0:00:15]} 5. exd5 {[%emt 0:00:08]} b5 {[%emt 0:10:15]} 6. Bf1 {[%emt 0:00:20]} Nd4 {[%emt 0:00:04]} 7. c3 {[%emt 0:18:42]} Nxd5 {[%emt 0:00:37]} 8. h4 {[%emt 0:00:54]} Nf5 {[%emt 0:13:20]} 9. Bxb5+ {[%emt 0:04:59]} Bd7 {[%emt 0:00:16]} 10. Qa4 {[%emt 0:01:08] [#] Threatens to win with Bxd7+. White is slightly better.} Nf4 {[%emt 0:06:02]} (10... Nb6 $16 {was worth a try.} 11. Bxd7+ Nxd7) 11. Bxd7+ $18 {[%emt 0:08:18]} Qxd7 {[%emt 0:00:15]} 12. Qxd7+ {[%emt 0:00:39]} Kxd7 {[%emt 0:00:02]} 13. Nxf7 {[%emt 0:01:38]} e4 {[%emt 0:12:31]} 14. d4 {[%emt 0:08:20]} Nd3+ {[%emt 0:03:53]} 15. Ke2 {[%emt 0:00:11]} Rg8 {[%emt 0:07:04]} 16. Ne5+ {[%emt 0:05:42]} Nxe5 {[%emt 0:00:16]} 17. dxe5 {[%emt 0:00:04]} Ke6 {[%emt 0:00:38]} 18. Bf4 {[%emt 0:02:57]} Rb8 {[%emt 0:06:02]} 19. b3 {[%emt 0:01:12]} Ne7 {[%emt 0:00:06]} 20. Bh2 {[%emt 0:10:07] Hoping for Nd2.} Ng6 {[%emt 0:01:54]} (20... g5 $142 21. hxg5 Rxg5) 21. Nd2 {[%emt 0:00:38]} Kf5 {[%emt 0:02:09]} 22. f3 {[%emt 0:03:16][%cal Bf2f3,Bf3f4,Bf4f5][%mdl 32] [#] And now g4+ would win.} Nxh4 {[%emt 0:00:41]} (22... Nf4+ $142 23. Bxf4 Kxf4 24. Nxe4 (24. fxe4 Kxe5 25. Raf1 Ke6 $18) 24... h6 25. g3+ Kxe5) 23. g4+ {[%emt 0:00:35]} Ke6 {[%emt 0:00:25][%cal Bf5e6,Be6d5,Bd5d4][%mdl 32]} 24. f4 {[%emt 0:03:01]} g5 {[%emt 0:02:11]} 25. f5+ {[%emt 0:02:13]} Kd5 {[%emt 0:00:02]} 26. Rad1 {[%emt 0:00:44]} Bc5 {[%emt 0:01:34]} 27. b4 {[%emt 0:01:58]} Bb6 {[%emt 0:01:09]} 28. c4+ {[%emt 0:00:13]} Kd4 {[%emt 0:00:05]} 29. c5 {[%emt 0:00:23]} (29. Rc1 $142 e3 30. Rhd1 exd2 31. Rxd2+ Ke4 32. c5 Nf3 33. Rc4+ Nd4+ 34. Rcxd4#) 29... Bxc5 {[%emt 0:00:09]} 30. Nb3+ {[%emt 0:01:08] Black got outplayed after the opening.   Weighted Error Value: White=0.08 (flawless) /Black=0.74.  Mistake:       	---       	Black=3      Inaccurate:     	---       	Black=1      OK:         	White=12    	Black=6      Best:        	White=1     	Black=2} 1-0

[Event "Lliga Catalana 2024"]
[Site "Catalonia"]
[Date "2024.02.24"]
[Round "6.3"]
[White "Martinez Pla, Xavier"]
[Black "Khamrakulov, Ibragim S."]
[Result "1/2-1/2"]
[ECO "B41"]
[WhiteElo "2251"]
[BlackElo "2408"]
[Annotator "TA"]
[PlyCount "20"]
[EventDate "2024.01.18"]
[EventType "team-tourn"]
[EventCountry "ESP"]
[SourceTitle "playchess.com"]
[Source "ChessBase"]
[SourceQuality "1"]
[TimeControl "5400+30"]

{[%evp 11,20,44,35,33,36,41,39,0,0,0,40]} 1. e4 {[%emt 0:00:03]} c5 {[%emt 0:00:08]} 2. Nf3 {[%emt 0:00:06]} e6 {[%emt 0:00:08]} 3. d4 {[%emt 0:00:10]} cxd4 {[%emt 0:00:09]} 4. Nxd4 {[%emt 0:00:06]} a6 {[%emt 0:00:07]} 5. c4 {[%emt 0:00:05]} Nc6 {[%emt 0:00:37]} 6. Nc3 {[%emt 0:03:07]} Bc5 {[%emt 0:07:11]} 7. Be3 {[%emt 0:10:50] [#] Nxc6 would now be deadly.} Qb6 {[%emt 0:03:21][%csl LRb2,LRd4][%cal Rc5d4]} 8. Na4 $1 {[%emt 0:02:54]} Qa5+ {[%emt 0:09:48]} 9. Nc3 {[%emt 0:05:22] Threatens to win with Nb3.} Qb6 {[%emt 0:00:17][%csl LRb2,LRd4][%cal Rc5d4]} 10. Na4 $1 {[%emt 0:00:07]} Qa5+ $1 {[%emt 1:13:44] Weighted Error Value: White=0.11 (very precise) /Black=0.00 (flawless) .  OK:         	---       	Black=3      Strong:       	White=2     	Black=1} 1/2-1/2

[Event "Lliga Catalana 2024"]
[Site "Catalonia"]
[Date "2024.02.24"]
[Round "6.4"]
[White "Barseghyan, Harutyun"]
[Black "Ventura Bolet, Maxim"]
[Result "1-0"]
[ECO "D02"]
[WhiteElo "2442"]
[BlackElo "2233"]
[Annotator "RC"]
[PlyCount "91"]
[EventDate "2024.01.18"]
[EventType "team-tourn"]
[EventCountry "ESP"]
[SourceTitle "playchess.com"]
[Source "ChessBase"]
[SourceQuality "1"]
[TimeControl "5400+30"]

1. d4 {[%emt 0:00:06]} d5 {[%emt 0:00:06]} 2. Nf3 {[%emt 0:00:08]} e6 {[%emt 0:00:49]} 3. Bf4 {[%emt 0:02:42]} Nf6 {[%emt 0:00:32]} 4. e3 {[%emt 0:00:12]} c5 {[%emt 0:00:17]} 5. c3 {[%emt 0:02:15]} Nc6 {[%emt 0:00:39]} 6. Nbd2 {[%emt 0:00:08]} cxd4 {[%emt 0:00:41]} 7. exd4 {[%emt 0:00:07]} Nh5 {[%emt 0:00:05]} 8. Bg3 {[%emt 0:02:44]} g6 {[%emt 0:04:19]} 9. Ne5 {[%emt 0:05:59]} Bg7 {[%emt 0:04:36]} 10. Bb5 {[%emt 0:06:02]} Bd7 {[%emt 0:04:33]} 11. Bxc6 {[%emt 0:02:15]} Bxc6 {[%emt 0:00:58]} 12. O-O {[%emt 0:00:20]} Nxg3 {[%emt 0:01:28]} 13. hxg3 {[%emt 0:00:34]} Rc8 {[%emt 0:05:54]} 14. Re1 {[%emt 0:02:41]} O-O {[%emt 0:01:17]} 15. f4 {[%emt 0:05:32]} Be8 {[%emt 0:11:34]} 16. Ndf3 {[%emt 0:04:53]} Qd6 {[%emt 0:04:39]} 17. Re3 {[%emt 0:05:24]} a5 {[%emt 0:07:23]} 18. Qd2 {[%emt 0:01:37]} b6 {[%emt 0:05:40]} 19. Rae1 {[%emt 0:00:20]} Bb5 {[%emt 0:01:33]} 20. g4 {[%emt 0:12:57]} f6 {[%emt 0:07:00]} 21. Nd3 {[%emt 0:00:44]} Rce8 {[%emt 0:01:10]} 22. g5 {[%emt 0:10:10]} Bxd3 {[%emt 0:05:46]} 23. Rxd3 {[%emt 0:00:23]} fxg5 {[%emt 0:01:56]} 24. fxg5 {[%emt 0:00:06]} Rf5 {[%emt 0:04:09]} 25. Qf2 {[%emt 0:08:28]} h6 {[%emt 0:11:13]} 26. Qh4 {[%emt 0:02:15]} Qf4 {[%emt 0:04:35]} 27. Qxf4 {[%emt 0:00:45]} Rxf4 {[%emt 0:00:02]} 28. Rde3 {[%emt 0:00:29]} Kf7 {[%emt 0:01:33]} 29. g3 {[%emt 0:02:49]} Rf5 {[%emt 0:00:58]} 30. Kg2 {[%emt 0:04:43]} h5 {[%emt 0:01:53]} 31. Kh3 {[%emt 0:02:05]} Re7 {[%emt 0:05:35]} 32. g4 {[%emt 0:01:00]} hxg4+ 33. Kxg4 {[%emt 0:00:02]} Re8 {[%emt 0:01:46]} 34. Nh4 {[%emt 0:01:16]} Rf2 {[%emt 0:00:10]} 35. R3e2 {[%emt 0:01:23]} Rxe2 {[%emt 0:00:25]} 36. Rxe2 {[%emt 0:00:01]} Rg8 {[%emt 0:01:35]} 37. Rf2+ {[%emt 0:00:12]} Ke8 {[%emt 0:00:01]} 38. Nxg6 {[%emt 0:01:33]} Bxd4 {[%emt 0:00:43]} 39. cxd4 {[%emt 0:00:04]} Rxg6 {[%emt 0:00:02]} 40. Kh5 {[%emt 0:00:20]} Rg8 {[%emt 0:00:04]} 41. g6 {[%emt 0:00:10]} e5 {[%emt 0:02:17]} 42. dxe5 {[%emt 0:00:17]} Ke7 {[%emt 0:00:12]} 43. Rf6 {[%emt 0:02:16]} d4 {[%emt 0:00:36]} 44. Kg5 {[%emt 0:02:18]} d3 {[%emt 0:01:08]} 45. Rd6 {[%emt 0:00:03]} Rd8 {[%emt 0:00:33]} 46. Rxd8 {[%emt 0:00:36]} 1-0

[Event "Lliga Catalana 2024"]
[Site "Catalonia"]
[Date "2024.02.24"]
[Round "6.4"]
[White "Pi Pares, Albert"]
[Black "Moskalenko, Viktor"]
[Result "0-1"]
[ECO "B06"]
[WhiteElo "2240"]
[BlackElo "2416"]
[Annotator "TA"]
[PlyCount "56"]
[EventDate "2024.01.18"]
[EventType "team-tourn"]
[EventCountry "ESP"]
[SourceTitle "playchess.com"]
[Source "ChessBase"]
[SourceQuality "1"]
[TimeControl "5400+30"]

{[%evp 9,56,31,50,20,79,75,65,11,13,-4,0,-16,0,0,0,0,0,-48,-45,-29,-40,-20,-20,-47,-33,-90,-75,-93,-35,-75,-27,-58,-38,-53,-56,-72,0,0,0,0,80,63,73,44,162,162,133,-554,-550]} 1. e4 {[%emt 0:00:16]} g6 {[%emt 0:01:31]} 2. d4 {[%emt 0:00:14][%cal Bd2d4,Bd4d5][%mdl 32]} Bg7 {[%emt 0:00:06]} 3. Nc3 {[%emt 0:00:22]} d6 {[%emt 0:00:54]} 4. Be3 {[%emt 0:00:32]} a6 {[%emt 0:00:30]} 5. g4 {[%emt 0:02:27]} Nc6 {[%emt 0:42:02]} 6. d5 {[%emt 0:05:56]} Ne5 {[%emt 0:04:40]} (6... Bxc3+ $11 7. bxc3 Nb8) 7. h3 $16 {[%emt 0:01:47]} Nf6 {[%emt 0:00:16]} 8. g5 {[%emt 0:11:01]} (8. f4 $14 Ned7 9. Be2) 8... Nh5 $11 {[%emt 0:00:17]} 9. Be2 {[%emt 0:00:50]} c5 {[%emt 0:02:55]} 10. a4 {[%emt 0:10:47]} f5 {[%emt 0:13:57]} 11. gxf6 {[%emt 0:07:17]} Nxf6 {[%emt 0:00:48]} 12. f4 {[%emt 0:07:30]} Nf7 {[%emt 0:00:34]} 13. Bf3 {[%emt 0:24:26]} (13. Qd3 $11 {is more appropriate.}) 13... O-O {[%emt 0:01:34]} 14. Nge2 {[%emt 0:00:50]} e6 {[%emt 0:08:09]} 15. dxe6 $1 {[%emt 0:01:44]} Bxe6 {[%emt 0:00:02]} 16. Ng3 {[%emt 0:01:37]} Qe7 {[%emt 0:04:06][%cal Od6d5]} 17. Kf2 {[%emt 0:05:41]} (17. Qd2 $15) 17... Rad8 {[%emt 0:01:30]} 18. Qd2 {[%emt 0:01:14]} Bd7 {[%emt 0:04:22]} (18... d5 $17 19. exd5 Rfe8) 19. Kg2 $15 {[%emt 0:01:15]} Bc6 {[%emt 0:00:05]} (19... b5 $17 20. axb5 axb5) 20. Rhe1 {[%emt 0:02:15]} b5 {[%emt 0:01:05]} 21. axb5 {[%emt 0:00:19]} axb5 {[%emt 0:00:01]} 22. Ra6 {[%emt 0:01:22]} Be8 {[%emt 0:01:10]} ({Black should try} 22... Bd7 $17) 23. b4 {[%emt 0:07:01]} cxb4 {[%emt 0:01:39]} 24. Na2 {[%emt 0:00:13]} Rc8 {[%emt 0:07:30]} (24... b3 $11 {keeps the balance.} 25. cxb3 Bd7) 25. Nxb4 $16 {[%emt 0:00:33]} Rc4 {[%emt 0:00:44]} 26. Bd4 {[%emt 0:01:45]} Nd8 {[%emt 0:01:51] [#]} (26... Bh6 $14) 27. c3 $1 $18 {[%emt 0:02:02] Threatens to win with e5.} Ne6 {[%emt 0:00:19] [#]} 28. Nd5 $2 {[%emt 0:02:26][%mdl 8192]} (28. e5 $1 $16 {[%cal Re5f6]} dxe5 29. Bxe5) 28... Nxd5 {[%emt 0:00:28] Weighted Error Value: White=0.43/Black=0.32.  Loses game:     	White=1     	---        Mistake:       	White=3     	Black=6      Inaccurate:     	White=3     	---        OK:         	White=7     	Black=4      Best:        	White=1     	Black=2      Strong:       	White=1     	---} 0-1